Cogmind - Beta 16.1 @@@ ROGUE MODE // 2026.06.21 @ 15:42:26 Player: Conwew Result: Destroyed by as-28817 with Assembled Blade Performance ------------- Evolutions (0) 0 Regions Visited (4) 800 Robots Destroyed (15) 75 Value Destroyed (444) 444 Prototype IDs (24) 480 Alien Tech Used (0) 0 Bonus (307) 307 TOTAL SCORE: 2106 Bonus ------- Follower Combat Kills 7 Aligned with FarCom 300 Cogmind --------- Core Integrity 0/250 Matter 188/300 Energy 83/100 System Corruption 0% Temperature Cool (0) Movement Walking (130) Location -9/Mines Parts ------- > --- POWER (1) -------- (None) > --- PROPULSION (2) --- Aluminum Leg Makeshift Leg > --- UTILITY (2) ------ Experimental Sensor Array Modified TNC > --- WEAPON (2) ------- Minigun > --- INVENTORY (5) ---- Light Nuclear Core Bomb Drone Bay Beamcaster Peak State ------------ > --- POWER ------------ Deuterium Engine > --- PROPULSION ------- Aluminum Leg Carbon-fiber Leg > --- UTILITY ---------- Experimental Sensor Array Modified TNC > --- WEAPON ----------- Minigun Improved Grenade Launcher > --- INVENTORY -------- Light Nuclear Core Bomb Drone Bay Beamcaster [Rating: 30] Favorites ----------- Power Deuterium Engine Engine Deuterium Engine Propulsion Wheel Leg Aluminum Leg Wheel Wheel Utility Propulsion Shielding Device Improved Sensor Array Processor Modified TNC Protection Propulsion Shielding Weapon Light Assault Rifle Ballistic Gun Light Assault Rifle Launcher Improved Grenade Launcher Build | -11 -10 -10 -10 -9 ------- Run | Yrd Mat Min Exi Min Slots Evolved . | . . . . . Power . | . . . . . Propulsion . | . . . . . Utility . | . . . . . Weapon . | . . . . . Parts Attached 17 | 5 3 4 1 4 Power 3 | 1 1 1 . . Engine 3 | 1 1 1 . . Core . | . . . . . Reactor . | . . . . . Propulsion 5 | 2 . . . 3 Treads . | . . . . . Leg 3 | . . . . 3 Wheel 2 | 2 . . . . Hover . | . . . . . Flight . | . . . . . Utility 5 | . 2 1 1 1 Device 3 | . 1 1 . 1 Storage . | . . . . . Processor 1 | . . . 1 . Hackware . | . . . . . Protection 1 | . 1 . . . Artifact . | . . . . . Weapon 4 | 2 . 2 . . Energy Gun . | . . . . . Energy Cannon . | . . . . . Ballistic Gun 3 | 2 . 1 . . Ballistic Cannon . | . . . . . Launcher 1 | . . 1 . . Special Weapon . | . . . . . Impact Weapon . | . . . . . Slashing Weapon . | . . . . . Piercing Weapon . | . . . . . Special Melee Weapon . | . . . . . Unidentified Prototypes 1 | . . . . 1 Parts Lost 3 | . . . . 3 Power 1 | . . . . 1 Propulsion 1 | . . . . 1 Utility . | . . . . . Weapon 1 | . . . . 1 Highest Loss Streak 3 | . . . . 3 To Critical Strikes . | . . . . . Average Backups 3 | . . 3 4 4 Power . | . . . 1 1 Propulsion . | . . . 1 . Utility 1 | . . 1 1 1 Weapon . | . . 1 1 1 Tool/Special . | . . . . . Unused Backups 6 | . . 2 . 4 Power 1 | . . . . 1 Propulsion 1 | . . 1 . . Utility 2 | . . . . 2 Weapon 2 | . . 1 . 1 Tool/Special . | . . . . . Average Slot Usage (%) 97 | . 90 100 100 99 Engine 13 | . 13 14 14 13 Leg 4 | . . . . 15 Wheel 23 | . 27 28 28 12 Device 12 | . 8 14 14 14 Processor 4 | . . . 7 14 Protection 8 | . 12 14 7 . Ballistic Gun 19 | . 28 17 14 14 Launcher 8 | . . 10 14 14 Peak Build Rating 30 | 5 7 16 21 30 Average Rating 14 | 3 6 13 18 24 On Entrance 9 | . 5 7 16 21 Avg Prop Armor Cover (%) . | . . . . . Naked Turns . | . . . . . Heaviest Build 20 | 5 7 20 20 19 Greatest Support 25 | 20 20 20 20 25 Greatest Overweight (x) 6 | . . . . 6 Average Overweight (x) . | . . . . . Largest Inventory Capacity 5 | 5 5 5 5 5 Average Capacity 5 | 5 5 5 5 5 Most Carried 5 | . 1 5 5 5 Average Carried 3 | . . 4 5 4 Final Capacity 5 | 5 5 5 5 5 Final Carried 5 | . 1 5 5 4 Class Distribution -------------------- 72% | Mutant 27% | Skirmisher Dominant Class ---------------- Mutant | -10/Materials Mutant | -10/Mines Mutant | -10/Exiles Skirmisher | -9/Mines Resources | -11 -10 -10 -10 -9 ----------- Run | Yrd Mat Min Exi Min Matter Collected 544 | 250 80 191 . 23 Remotely . | . . . . . Salvage Created 368 | . 183 185 . . Parts 28 | . 14 14 . . Haulers Intercepted . | . . . . . Recyclers Shooed . | . . . . . Parts Field Recycled . | . . . . . Retrieved Matter . | . . . . . Parts Self-Destructed . | . . . . . Prevented . | . . . . . Parts Restored . | . . . . . Kills | -11 -10 -10 -10 -9 ------- Run | Yrd Mat Min Exi Min Combat Hostiles Destroyed 15 | . 6 8 . 1 Guns 8 | . 6 2 . . AOE 7 | . . 6 . 1 Classes Destroyed 4 | . 3 . . 1 Operator 1 | . 1 . . . Swarmer 5 | . 3 2 . . Grunt 9 | . 3 6 . . Assembled 1 | . . . . 1 Best Kill Streak 4 | . 4 2 . 1 Combat Bots Only 4 | . 4 2 . 1 Max Kills in Single Turn 2 | . 1 2 . 1 Gunslinging . | . . . . . Exploded 2 | . . 2 . 1 Melee . | . . . . . Uniques/NPCs Destroyed . | . . . . . Combat | -11 -10 -10 -10 -9 -------- Run | Yrd Mat Min Exi Min Hostile Shots Fired 86 | . 27 28 . 31 Missed 22 | . 5 8 . 9 Hits 64 | . 22 20 . 22 Melee 7 | . . . . 7 Projectile 57 | . 22 20 . 15 Critical Strikes 2 | . . 1 . 1 Actively Blocked 1 | . . 1 . . Damage Taken 908 | . 247 236 . 425 Core 281 | . 39 71 . 171 Absorbed by Shields . | . . . . . Redirected to Shielding 31 | . 10 21 . . Regen/Repaired (Parts) 82 | . 82 . . . Core Remaining (%) 100 | 100 . . . . Volleys Fired 58 | . 25 20 . 13 Largest 2 | . 2 2 . 2 Hottest 61 | . 40 61 . 61 Shots Fired 100 | . 50 34 . 16 Gun 91 | . 50 28 . 13 Cannon . | . . . . . Launcher 9 | . . 6 . 3 Special . | . . . . . Kinetic 91 | . 50 28 . 13 Thermal . | . . . . . Explosive 9 | . . 6 . 3 Electromagnetic . | . . . . . Robot Hit Streak 5 | . 4 5 . 1 Robot Miss Streak 6 | . 6 4 . 5 Penetration Max . | . . . . . Secondary Targets 1 | . . 1 . . Max Gunslinging Chain 1 | . . 1 . . Shots Hit Robots 57 | . 28 24 . 5 Core Hits 32 | . 14 15 . 3 Critical Kills 1 | . . 1 . . Critical Parts Destroyed 1 | . . 1 . . Critical Strikes 2 | . . 2 . . Destroy 2 | . . 2 . . Melee Attacks . | . . . . . Impact . | . . . . . Slashing . | . . . . . Piercing . | . . . . . Sneak Attacks . | . . . . . Combat Hostiles . | . . . . . Follow-up Attacks . | . . . . . Damage Inflicted 1181 | . 246 748 . 187 Guns 524 | . 246 207 . 71 Cannons . | . . . . . Explosions 657 | . . 541 . 116 Melee . | . . . . . Ramming . | . . . . . Kinetic 524 | . 246 207 . 71 Thermal . | . . . . . Explosive 657 | . . 541 . 116 Electromagnetic . | . . . . . Impact . | . . . . . Slashing . | . . . . . Piercing . | . . . . . Highest Corruption . | . . . . . Average Corruption . | . . . . . Corruption Purged . | . . . . . Corruption Blocked . | . . . . . Overload Shots . | . . . . . Overflow Damage 15 | . . 15 . . Projectiles . | . . . . . Explosions 15 | . . 15 . . Melee . | . . . . . Knockbacks . | . . . . . Impact . | . . . . . Kinetic . | . . . . . Secondary . | . . . . . Self-Inflicted Damage 14 | . . 14 . . Shots 1 | . . 1 . . Rammed . | . . . . . Targets Rammed . | . . . . . Kicked . | . . . . . Crushed . | . . . . . Highest Temperature 34 | . 18 34 . 25 Average Temperature 11 | . 8 14 . 10 Received Heat Transfer 210 | . 108 84 . 18 Siege Activations . | . . . . . Martial Activations . | . . . . . Shielding Activations . | . . . . . Robots Disrupted . | . . . . . Combat Hostiles . | . . . . . Robots Corrupted . | . . . . . Combat Hostiles . | . . . . . Parts Fried . | . . . . . Impact Corruptions . | . . . . . Robots Melted . | . . . . . Combat Hostiles . | . . . . . Parts Melted . | . . . . . Heat Transferred . | . . . . . Parts Sabotaged . | . . . . . Parts Stolen . | . . . . . Parts Stripped . | . . . . . Power Chain Reactions . | . . . . . Alert | -11 -10 -10 -10 -9 ------- Run | Yrd Mat Min Exi Min Maximum Alert Level 1 | . . 1 . . Low Security (%) 99 | 100 100 99 . 100 Level 1 . | . . . . . Level 2 . | . . . . . Level 3 . | . . . . . Level 4 . | . . . . . Level 5 . | . . . . . High Security . | . . . . . Max Security . | . . . . . Peak Influence 204 | . 95 204 . 30 Initial . | . . . . . Average 41 | . 35 77 . 1 Influence Increases 621 | . 233 323 . 65 Destroy 0b10 Robot/C 300 | . 120 180 . . Destroy 0b10 Robot/NC 5 | . 5 . . . Destroy Leader 70 | . 30 40 . . Allied During Kill 23 | . . 23 . . Successful Hack 3 | . 3 . . . Disable Machine 30 | . . 30 . . Destroy Structure 85 | . . 50 . 35 Lose Combat Pursuer 105 | . 75 . . 30 Influence Decreases 601 | . 233 223 100 45 Entered New Map 100 | . . . 100 . Time Decay 488 | . 233 223 . 32 Lost Part 13 | . . . . 13 Squads Dispatched 2 | . 2 . . . Investigation . | . . . . . Extermination . | . . . . . Reinforcement 2 | . 2 . . . Assault . | . . . . . Garrison . | . . . . . Intercept . | . . . . . Searches Triggered . | . . . . . Construction Impeded . | . . . . . Haulers Reinforced . | . . . . . Active Scanning Responses . | . . . . . Cargo Convoy Interrupts . | . . . . . Stealth | -11 -10 -10 -10 -9 --------- Run | Yrd Mat Min Exi Min Distress Signals 3 | . 2 . . 1 Communications Jammed . | . . . . . Distress Signals . | . . . . . Times Spotted 33 | . 18 9 . 6 Peak Tracking Total 6 | . 6 3 . 4 Tactical Retreats 3 | . 2 . . 1 Traps | -11 -10 -10 -10 -9 ------- Run | Yrd Mat Min Exi Min Traps Triggered . | . . . . . Indirectly . | . . . . . Trap Hack Attempts . | . . . . . Triggered . | . . . . . Disarmed . | . . . . . Reprogrammed . | . . . . . Reused . | . . . . . Traps Extracted . | . . . . . Installed . | . . . . . Triggered . | . . . . . Machines | -11 -10 -10 -10 -9 ---------- Run | Yrd Mat Min Exi Min Machines Disabled 2 | . . 2 . . Max in Single Turn 1 | . . 1 . . Machines Repaired . | . . . . . Machines Dismantled . | . . . . . Machines Sabotaged . | . . . . . Overloaded Fab Kills . | . . . . . Hacking | -11 -10 -10 -10 -9 --------- Run | Yrd Mat Min Exi Min Machines Accessed 8 | . 3 2 2 1 Terminals 3 | . 2 1 . . Fabricators . | . . . . . Repair Stations 1 | . 1 . . . Recycling Units . | . . . . . Scanalyzers . | . . . . . Garrison Access . | . . . . . Total Hacks 18 | . 10 2 5 1 Successful 13 | . 6 1 5 1 Failed 5 | . 4 1 . . Catastrophic . | . . . . . Database Lockouts . | . . . . . Manual 6 | . 4 1 1 . Terminals 5 | . 4 1 . . Fabricators . | . . . . . Repair Stations 6 | . 6 . . . Recycling Units . | . . . . . Scanalyzers . | . . . . . Garrison Access . | . . . . . Terminal Hacks 7 | . . 1 5 1 Record 4 | . . . 4 . Open Door 2 | . . 1 . 1 Proto ID Catalog 1 | . . . 1 . Fabricator Hacks . | . . . . . Repair Station Hacks 6 | . 6 . . . Scan Component 3 | . 3 . . . Repair 3 | . 3 . . . Recycling Unit Hacks . | . . . . . Scanalyzer . | . . . . . Garrison Access Hacks . | . . . . . Unauthorized Hacks . | . . . . . Terminals . | . . . . . Fabricators . | . . . . . Repair Stations . | . . . . . Recycling Units . | . . . . . Scanalyzers . | . . . . . Garrison Access . | . . . . . Data Cores Recovered . | . . . . . Used . | . . . . . Hacking Detections 2 | . 2 . . . Full Trace Events . | . . . . . Feedback Events . | . . . . . Feedback Blocked . | . . . . . Robot Schematics Acquired . | . . . . . Robots Built . | . . . . . Authchips . | . . . . . Time . | . . . . . Total Robot Build Rating . | . . . . . Part Schematics Acquired . | . . . . . Parts Built . | . . . . . Authchips . | . . . . . Time . | . . . . . Total Part Build Rating . | . . . . . Part Studies Acquired . | . . . . . Parts Repaired 3 | . 3 . . . Time 78 | . 78 . . . Parts Recycled . | . . . . . Recycled Matter . | . . . . . Retrieved Matter . | . . . . . Retrieved Components . | . . . . . Parts Scanalyzed . | . . . . . Part Schematics Acquired . | . . . . . Parts Damaged . | . . . . . Bothacking | -11 -10 -10 -10 -9 ------------ Run | Yrd Mat Min Exi Min Used RIF Installer . | . . . . . Robots Hacked . | . . . . . Non-combat . | . . . . . Combat . | . . . . . Robot Hacks Applied . | . . . . . Relay Couplers Released . | . . . . . Fabnet Peak Effective % . | . . . . . Robots Rewired . | . . . . . Allies Hacked . | . . . . . Hacks Repelled . | . . . . . Allies | -11 -10 -10 -10 -9 -------- Run | Yrd Mat Min Exi Min Total Allies 3 | . . 3 . . Largest Group 3 | . . 3 2 . Highest-Rated Group 68 | . . 68 45 . Highest-Rated Ally 31 | . . 31 31 . Total Orders . | . . . . . Ally Attacks 3 | . . 3 . . Total Damage 22 | . . 22 . . Kills 1 | . . 1 . . Allies Corrupted . | . . . . . Allies Melted . | . . . . . Intel | -11 -10 -10 -10 -9 ------- Run | Yrd Mat Min Exi Min Active Infowar (turns) 1974 | . 360 789 229 596 Sensors 1973 | . 360 789 229 595 T.N.C. 709 | . . . 113 596 Robot Analysis Total . | . . . . . Derelict Logs Recovered 3 | . . 2 . 1 Drone Launches . | . . . . . Drone Recoveries . | . . . . . Exploration | -11 -10 -10 -10 -9 ------------- Run | Yrd Mat Min Exi Min Turns Passed 2216 | 38 563 790 229 596 Spaces Moved 2132 | 39 475 820 256 542 Core 4 | 3 . . . 1 Treads . | . . . . . Legs 233 | . . . . 233 Wheels 1895 | 36 475 820 256 308 Hover . | . . . . . Flight . | . . . . . Fastest Speed 50 | 50 80 80 80 80 Average Speed 84 | 77 80 80 80 97 Slowest Speed 350 | 80 80 80 80 350 Overloaded Moves . | . . . . . Propulsion Burnouts . | . . . . . Robots Hopped . | . . . . . Potential Cave-ins . | . . . . . Cave-ins Triggered . | . . . . . Exploration Rate (%) 61 | 3 79 98 62 63 Regions Visited 4 Branch Regions 3 Pre-discovered Areas 2 | . . . 1 1 Known Exits Taken . | . . . . . Unknown Exits Taken 4 | 1 1 1 1 . Scrap Searched 3 | . . 2 . 1 Spaces Dug . | . . . . . Terrain Destroyed 108 | . . 62 . 46 Melee . | . . . . . Projectile . | . . . . . AOE 108 | . . 62 . 46 Terrain Rammed . | . . . . . Walls Destroyed . | . . . . . Machines Disabled . | . . . . . Actions | -11 -10 -10 -10 -9 --------- Run | Yrd Mat Min Exi Min Total 2460 | 43 615 926 279 597 Wait 230 | . 108 71 22 29 Move 2128 | 38 474 819 255 542 Hop . | . . . . . Pick Up 10 | . 1 6 . 3 Fast Attach 18 | 5 6 4 1 2 Attach 2 | . . . . 2 Detach . | . . . . . Swap . | . . . . . Drop 14 | . 1 6 1 6 Fire 58 | . 25 20 . 13 Melee . | . . . . . Ram . | . . . . . Kick . | . . . . . Crush . | . . . . . Escape Stasis . | . . . . . Rewire . | . . . . . Trap . | . . . . . Miscellaneous . | . . . . . Route ------- -11/Scrapyard -10/Materials (discovered 3 exits: [*Mat x2] / *Min) -10/Mines (discovered 3 exits: [*Mat x2] / *Exi) -10/Exiles -9/Mines History --------- Turn | Location | Event 4 | -11/Scrapyard | Discovered new exit (range 15) 39 | -11/Scrapyard | Entered Materials 111 | -10/Materials | Discovered new exit (range 8) 164 | -10/Materials | Discovered new exit (range 16) 301 | -10/Materials | Build established: Mutant 410 | -10/Materials | Discovered new exit (range 16) 539 | -10/Materials | Repaired Wheel 566 | -10/Materials | Repaired Wheel 593 | -10/Materials | Repaired Lgt. Ion Engine 602 | -10/Materials | Entered Mines 605 | -10/Mines | Received a Mining Laser from a helpful Derelict 620 | -10/Mines | Discovered new exit (range 13) 668 | -10/Mines | Learned Materials trap positions 725 | -10/Mines | Found a hidden stash of uninstalled traps 788 | -10/Mines | Met a Derelict who couldn't figure out how to use a Trap Extractor 853 | -10/Mines | Learned Materials terminal intel 1008 | -10/Mines | Discovered new exit (range 7) 1010 | -10/Mines | Met a Derelict testing a Signal Generator 1016 | -10/Mines | Found Signal Generator 1350 | -10/Mines | Deemed a non-threat by the Exiles lab entrance 1350 | -10/Mines | Discovered new exit (range 5) 1392 | -10/Mines | Entered Exiles 1392 | -10/Exiles | Accompanied by 2 allies 1412 | -10/Exiles | Met 8R-AWN 1422 | -10/Exiles | Led the pair of lost Derelicts to a safe place 1442 | -10/Exiles | Met EX-HEX 1466 | -10/Exiles | Met EX-BIN 1476 | -10/Exiles | Aligned with FarCom system 1477 | -10/Exiles | Given EX-Vault access code 1503 | -10/Exiles | Opened EX-Vault 1508 | -10/Exiles | Found Modified TNC 1525 | -10/Exiles | Warned to stay clear of 0b10 Research branches 1538 | -10/Exiles | Exiles lab attacked by MAIN.C 1576 | -10/Exiles | Learned location of Zion (-6) 1605 | -10/Exiles | Discovered new exit (range 14) 1621 | -10/Exiles | Left Exiles lab with Modified TNC 1621 | -10/Exiles | Entered Mines 1628 | -9/Mines | Received a Rocket Launcher from a helpful Derelict 1747 | -9/Mines | Assembled infested the area 1779 | -9/Mines | Found a damaged Exp. Sensor Array with a note attached 1781 | -9/Mines | Found Prototype Device 1798 | -9/Mines | Learned location of Storage (-8) 1835 | -9/Mines | Found the Drone Emporium 1907 | -9/Mines | Build established: Skirmisher 1922 | -9/Mines | Found Prototype Device 2115 | -9/Mines | Identified Exp. Sensor Array 2140 | -9/Mines | Core integrity fell below 50% 2201 | -9/Mines | Core integrity fell below 20% 2217 | -9/Mines | Destroyed by as-28817 with Assembled Blade Last Messages --------------- C&D." KM-WAC(g): "I'm a fan of the free market. Free drones for all! No strings attached!" Dropped Imp. Heat Sink. Acquired Imp. Heat Sink. Dropped Wheel. Acquired Aluminum Leg. R-06 Scavenger collects Wheel. Dropped Imp. Heat Sink. Acquired Prototype Device. K-01 Serf collects debris. Dropped Imp. Sensor Array. Identified Exp. Sensor Array. Acquired 6 matter. Acquired 17 matter. as-65001 destroyed. Deuterium Engine destroyed. Carbon-fiber Leg destroyed. Imp. Grenade Launcher destroyed. Acquired Mak. Leg. Map ----- +----------------------------------------------------+ | ??????# ## ???????????????# ## | | ????## ??????????????# #? | | ???## ???????????????# #? | | ???# ???????????????????# #? | | ???# ???????????????????????# #? | | ???# #??????????????????????????# #? | | ???# #????####??????????????????# #? | | ???# #????# ???####???????????# #? | | ???# #????# #??## ##??????????# #? | | ???# ####?# #?## #??????????# #? | | ???# ### ### #??????????# ## | | ???# ## ## #???????????# % | | ???# # # #????????????# | | ???# # #????????????# | | ???## ## &##???????????# % | | ????# ## #######?????# | | ????# ### #?????# | | ????# =#?## # ### ####### | | ???## !%##?##### #?# | | ???# % *=####### #?# ####### | | ??## #?# ##???## | | ??# ########?# #????## | | ??# = !=#???????? #?????## | | ??# ===%#???????# #???????## | | ??## ###%=!#??????# ##??###### | | ???## ##?#@! ##???## # # # | | ????### ##??#=a #?## # ! | | ??????# #???## ### | % | | ??????# #????## ## *% |%= # | | ?????## ####### # ### ## | | ??#### Y# #??# # ?# | | ??# ######## ##?" " #?#??# | | ??# ########??##### ##??[? !!#??????# | | ??# ###""""##?????# #???! [????????# | | ??# ##" "#?????# ####? ??????????# | | ??# ##" "#?????# ## ##Y+###??????# | | ??# ### ! ?##?????# # #??????# | | ??# #### ###?????# # ###????# | | ??# ## X #?????# # ## ##???# | | ??# ## ####### ## | | ??# ## | | ??# ####### ## ### | | ??# #?????##########????? | | ??# #???????????????????? | | ??# #???????????????????? | | ??################???????????????????? | | ?????????????????????????????????????? | | ?????????????????????????????????????? | | | | | +----------------------------------------------------+ Best States ------------- Heat Dissipation 25 Energy Generation 14 Energy Capacity 275 Matter Stores 300 Matter Capacity 300 Sight Range 16 Robot Scan Range 20 Terrain Scan Density 10 Propulsion Shielding 33 Evasion (%) 55 Item Schematics ----------------- None Robot Schematics ------------------ None Fabricated ------------ Nothing Repaired ---------- Wheel | 12% | -10/Materials Wheel | 35% | -10/Materials Lgt. Ion Engine | 47% | -10/Materials Studied --------- None Alien Tech Used ----------------- None Achievements -------------- None Challenges ------------ None Game ------ Seed TrapResetPropulsion Manual? 0 Play Time 00:23:39 Cumulative 32.6 hours Start 2026.06.21 @ 15:21:11 End 2026.06.21 @ 15:42:26 Sessions 1 Manual Loads 0 Difficulty Rogue Special Mode None Game No. 34 Rogue 34 Adventurer 0 Explorer 0 Win Type - Total 0 Types 0/0/0/0/0/0/0/0/0/0 Lore% 46 Gallery% 29 Achievement% 23 Wizard Run 0 Options --------- Layout 1 ASCII 0 Keyboard 0 Movement Mouse Keybinds 0 Fullscreen 1 Font 24/X11 Map View 50x35 Zoom Use 0% Tactical HUD 0 Map Filters NONE Filters NONE Steam 1 RUN: 846edc2b-8939-4495-b5db-7e04019c15f7